[Event "Titled Tuesday Blitz August 02 Early 2022"]
[White "Shkapenko, Pavel"]
[Black "Sarana, Alexey"]
[WhiteFideId "4151933"]
[BlackFideId "24133795"]
[WhiteElo "2386"]
[BlackElo "2666"]
[Result "0-1"]
[Round "05"]
[TimeControl "180+1"]
[Date "2022.08.02"]
[WhiteClock "0:00:16"]
[BlackClock "0:00:29"]

1. e4 {[%clk 0:03:00]}  c5 {[%clk 0:02:52]} 2. c3 {[%clk 0:02:58]}  d5 {[%clk 0:02:52]} 3. exd5 {[%clk 0:02:58]}  Qxd5 {[%clk 0:02:52]} 4. d4 {[%clk 0:02:58]}  Nc6 {[%clk 0:02:53]} 5. Nf3 {[%clk 0:02:58]}  Bf5 {[%clk 0:02:52]} 6. Be3 {[%clk 0:02:57]}  cxd4 {[%clk 0:02:44]} 7. Nxd4 {[%clk 0:02:46]}  Nf6 {[%clk 0:02:44]} 8. Nxf5 {[%clk 0:02:46]}  Qxf5 {[%clk 0:02:43]} 9. Bd3 {[%clk 0:02:46]}  Qd5 {[%clk 0:02:35]} 10. O-O {[%clk 0:02:38]}  O-O-O {[%clk 0:02:35]} 11. Be2 {[%clk 0:02:19]}  Qxd1 {[%clk 0:02:35]} 12. Rxd1 {[%clk 0:02:19]}  Rxd1+ {[%clk 0:02:33]} 13. Bxd1 {[%clk 0:02:19]}  e6 {[%clk 0:02:34]} 14. Nd2 {[%clk 0:02:16]}  Nd5 {[%clk 0:02:34]} 15. Nc4 {[%clk 0:02:14]}  Nxe3 {[%clk 0:02:33]} 16. Nxe3 {[%clk 0:02:14]}  Bc5 {[%clk 0:02:33]} 17. Nc4 {[%clk 0:02:03]}  b5 {[%clk 0:02:28]} 18. Nd2 {[%clk 0:01:56]}  Rd8 {[%clk 0:02:21]} 19. Nb3 {[%clk 0:01:54]}  Bb6 {[%clk 0:02:22]} 20. Be2 {[%clk 0:01:54]}  b4 {[%clk 0:02:19]} 21. Rd1 {[%clk 0:01:51]}  Rxd1+ {[%clk 0:02:13]} 22. Bxd1 {[%clk 0:01:50]}  bxc3 {[%clk 0:02:13]} 23. bxc3 {[%clk 0:01:51]}  Kc7 {[%clk 0:02:12]} 24. Kf1 {[%clk 0:01:51]}  Ne7 {[%clk 0:02:12]} 25. g3 {[%clk 0:01:44]}  Nd5 {[%clk 0:02:05]} 26. c4 {[%clk 0:01:44]}  Nc3 {[%clk 0:02:05]} 27. Bc2 {[%clk 0:01:44]}  Kd6 {[%clk 0:01:48]} 28. Bxh7 {[%clk 0:01:15]}  Nxa2 {[%clk 0:01:48]} 29. c5+ {[%clk 0:01:04]}  Bxc5 {[%clk 0:01:48]} 30. Bg8 {[%clk 0:01:05]}  Bb6 {[%clk 0:01:37]} 31. Bxf7 {[%clk 0:01:04]}  Nc3 {[%clk 0:01:28]} 32. Nd2 {[%clk 0:00:44]}  Bd8 {[%clk 0:00:57]} 33. f4 {[%clk 0:00:39]}  a5 {[%clk 0:00:56]} 34. g4 {[%clk 0:00:39]}  a4 {[%clk 0:00:55]} 35. f5 {[%clk 0:00:39]}  exf5 {[%clk 0:00:55]} 36. gxf5 {[%clk 0:00:40]}  Ke5 {[%clk 0:00:55]} 37. Be8 {[%clk 0:00:33]}  Kxf5 {[%clk 0:00:42]} 38. Nc4 {[%clk 0:00:32]}  Be7 {[%clk 0:00:41]} 39. Kg2 {[%clk 0:00:20]}  a3 {[%clk 0:00:40]} 40. Bd7+ {[%clk 0:00:20]}  Kf4 {[%clk 0:00:33]} 41. Nd2 {[%clk 0:00:19]}  a2 {[%clk 0:00:33]} 42. Nb3 {[%clk 0:00:20]}  Bf6 {[%clk 0:00:33]} 43. Be6 {[%clk 0:00:20]}  Nd1 {[%clk 0:00:30]} 44. Na1 {[%clk 0:00:19]}  Bxa1 {[%clk 0:00:30]} 45. Bxa2 {[%clk 0:00:19]}  Ne3+ {[%clk 0:00:30]} 46. Kf2 {[%clk 0:00:18]}  Bd4 {[%clk 0:00:30]} 47. Kg1 {[%clk 0:00:17]}  Kf3 {[%clk 0:00:30]} 48. Kh1 {[%clk 0:00:17]}  Kf2 {[%clk 0:00:30]} 49. Bd5 {[%clk 0:00:16]}  Nxd5 {[%clk 0:00:29]} 0-1


[Site "https://www.chess.com"]

[Event "Titled Tuesday Blitz August 02 Early 2022"]
[White "Skliarov, Viktor"]
[Black "Harsha Bharathakoti"]
[WhiteFideId "14106736"]
[BlackFideId "5078776"]
[WhiteElo "2257"]
[BlackElo "2575"]
[Result "0-1"]
[Round "05"]
[TimeControl "180+1"]
[Date "2022.08.02"]
[WhiteClock "0:00:06"]
[BlackClock "0:00:26"]

1. e4 {[%clk 0:03:00]}  c6 {[%clk 0:02:55]} 2. d4 {[%clk 0:03:00]}  d5 {[%clk 0:02:55]} 3. e5 {[%clk 0:03:01]}  c5 {[%clk 0:02:56]} 4. dxc5 {[%clk 0:03:01]}  e6 {[%clk 0:02:56]} 5. a3 {[%clk 0:03:01]}  Bxc5 {[%clk 0:02:56]} 6. b4 {[%clk 0:03:02]}  Be7 {[%clk 0:02:56]} 7. Bd3 {[%clk 0:03:00]}  Nd7 {[%clk 0:02:53]} 8. Nf3 {[%clk 0:03:00]}  f6 {[%clk 0:02:52]} 9. Bb2 {[%clk 0:03:00]}  Nh6 {[%clk 0:02:52]} 10. O-O {[%clk 0:02:52]}  Nf7 {[%clk 0:02:49]} 11. Re1 {[%clk 0:02:36]}  Ndxe5 {[%clk 0:02:42]} 12. Nxe5 {[%clk 0:02:18]}  fxe5 {[%clk 0:02:26]} 13. Qh5 {[%clk 0:01:30]}  g6 {[%clk 0:02:15]} 14. Bxg6 {[%clk 0:01:30]}  hxg6 {[%clk 0:02:15]} 15. Qxg6 {[%clk 0:01:31]}  Kf8 {[%clk 0:01:45]} 16. Re3 {[%clk 0:01:05]}  Rg8 {[%clk 0:01:42]} 17. Qh5 {[%clk 0:00:58]}  e4 {[%clk 0:01:34]} 18. Nd2 {[%clk 0:00:48]}  Bf6 {[%clk 0:01:23]} 19. Bxf6 {[%clk 0:00:38]}  Qxf6 {[%clk 0:01:24]} 20. Rf1 {[%clk 0:00:37]}  Qg6 {[%clk 0:01:13]} 21. Qxg6 {[%clk 0:00:30]}  Rxg6 {[%clk 0:01:14]} 22. f3 {[%clk 0:00:31]}  exf3 {[%clk 0:01:12]} 23. Nxf3 {[%clk 0:00:31]}  Rg7 {[%clk 0:01:13]} 24. Nd4 {[%clk 0:00:22]}  Bd7 {[%clk 0:00:55]} 25. Nxe6+ {[%clk 0:00:19]}  Bxe6 {[%clk 0:00:56]} 26. Rxe6 {[%clk 0:00:20]}  Rc8 {[%clk 0:00:55]} 27. Rf2 {[%clk 0:00:19]}  Re8 {[%clk 0:00:49]} 28. Rxe8+ {[%clk 0:00:15]}  Kxe8 {[%clk 0:00:50]} 29. Rd2 {[%clk 0:00:14]}  Rg5 {[%clk 0:00:48]} 30. h4 {[%clk 0:00:14]}  Rg4 {[%clk 0:00:43]} 31. Rxd5 {[%clk 0:00:14]}  Rxh4 {[%clk 0:00:44]} 32. Ra5 {[%clk 0:00:10]}  a6 {[%clk 0:00:40]} 33. Rc5 {[%clk 0:00:11]}  Kd7 {[%clk 0:00:38]} 34. b5 {[%clk 0:00:11]}  axb5 {[%clk 0:00:36]} 35. Rxb5 {[%clk 0:00:11]}  Nd6 {[%clk 0:00:36]} 36. Rb3 {[%clk 0:00:09]}  Rc4 {[%clk 0:00:36]} 37. c3 {[%clk 0:00:08]}  Kc6 {[%clk 0:00:37]} 38. Kh2 {[%clk 0:00:06]}  b5 {[%clk 0:00:24]} 39. Rb4 {[%clk 0:00:03]}  Rxc3 {[%clk 0:00:24]} 40. a4 {[%clk 0:00:03]}  Kc5 {[%clk 0:00:24]} 41. Rh4 {[%clk 0:00:02]}  b4 {[%clk 0:00:25]} 42. a5 {[%clk 0:00:03]}  b3 {[%clk 0:00:25]} 43. Rh5+ {[%clk 0:00:03]}  Kb4 {[%clk 0:00:24]} 44. a6 {[%clk 0:00:03]}  b2 {[%clk 0:00:24]} 45. a7 {[%clk 0:00:04]}  Rc8 {[%clk 0:00:24]} 46. Rh4+ {[%clk 0:00:03]}  Nc4 {[%clk 0:00:25]} 47. Rh7 {[%clk 0:00:03]}  Ra8 {[%clk 0:00:21]} 48. Rb7+ {[%clk 0:00:03]}  Kc3 {[%clk 0:00:22]} 49. g4 {[%clk 0:00:03]}  Kc2 {[%clk 0:00:22]} 50. g5 {[%clk 0:00:03]}  b1=Q {[%clk 0:00:22]} 51. Rxb1 {[%clk 0:00:04]}  Kxb1 {[%clk 0:00:23]} 52. g6 {[%clk 0:00:04]}  Rxa7 {[%clk 0:00:24]} 53. Kg3 {[%clk 0:00:04]}  Rg7 {[%clk 0:00:25]} 54. Kh4 {[%clk 0:00:05]}  Rxg6 {[%clk 0:00:26]} 55. Kh5 {[%clk 0:00:06]}  Rg1 {[%clk 0:00:26]} 0-1


[Site "https://www.chess.com"]

[Event "Titled Tuesday Blitz August 02 Early 2022"]
[White "Subaste, Arman"]
[Black "Harshavardhan G B"]
[WhiteFideId "5221080"]
[BlackFideId "25059009"]
[WhiteElo "1856"]
[BlackElo "1831"]
[Result "1-0"]
[Round "05"]
[TimeControl "180+1"]
[Date "2022.08.02"]
[WhiteClock "0:00:05"]
[BlackClock "0:00:11"]

1. d4 {[%clk 0:02:55]}  Nf6 {[%clk 0:02:56]} 2. c4 {[%clk 0:02:55]}  e5 {[%clk 0:02:56]} 3. dxe5 {[%clk 0:02:55]}  Ng4 {[%clk 0:02:56]} 4. Nf3 {[%clk 0:02:55]}  Bc5 {[%clk 0:02:52]} 5. e3 {[%clk 0:02:55]}  Nc6 {[%clk 0:02:51]} 6. Be2 {[%clk 0:02:52]}  Ngxe5 {[%clk 0:02:51]} 7. O-O {[%clk 0:02:52]}  O-O {[%clk 0:02:48]} 8. Nbd2 {[%clk 0:02:50]}  a5 {[%clk 0:02:47]} 9. Nxe5 {[%clk 0:02:50]}  Nxe5 {[%clk 0:02:48]} 10. Nf3 {[%clk 0:02:50]}  Nxf3+ {[%clk 0:02:47]} 11. Bxf3 {[%clk 0:02:51]}  Ra6 {[%clk 0:02:47]} 12. Bd2 {[%clk 0:02:48]}  Re8 {[%clk 0:02:39]} 13. a3 {[%clk 0:02:40]}  Qh4 {[%clk 0:02:27]} 14. g3 {[%clk 0:02:33]}  Qxc4 {[%clk 0:02:14]} 15. Be2 {[%clk 0:02:29]}  Qe4 {[%clk 0:02:14]} 16. Rc1 {[%clk 0:02:13]}  b6 {[%clk 0:02:02]} 17. Rc4 {[%clk 0:01:44]}  Qe7 {[%clk 0:01:55]} 18. Bd3 {[%clk 0:01:29]}  g6 {[%clk 0:01:36]} 19. Re4 {[%clk 0:01:26]}  Qf8 {[%clk 0:01:34]} 20. Rxe8 {[%clk 0:00:36]}  Qxe8 {[%clk 0:01:35]} 21. b4 {[%clk 0:00:36]}  axb4 {[%clk 0:01:28]} 22. axb4 {[%clk 0:00:37]}  Ra3 {[%clk 0:01:21]} 23. Bc1 {[%clk 0:00:33]}  Rxd3 {[%clk 0:01:16]} 24. Qxd3 {[%clk 0:00:33]}  Bxb4 {[%clk 0:01:17]} 25. Bb2 {[%clk 0:00:30]}  c5 {[%clk 0:00:42]} 26. Qd5 {[%clk 0:00:20]}  Qe6 {[%clk 0:00:38]} 27. Qa8 {[%clk 0:00:15]}  d5 {[%clk 0:00:29]} 28. Rd1 {[%clk 0:00:13]}  d4 {[%clk 0:00:28]} 29. exd4 {[%clk 0:00:10]}  Qg4 {[%clk 0:00:18]} 30. f3 {[%clk 0:00:10]}  Qd7 {[%clk 0:00:17]} 31. d5 {[%clk 0:00:06]}  c4 {[%clk 0:00:17]} 32. Qc6 {[%clk 0:00:06]}  c3 {[%clk 0:00:16]} 33. Bxc3 {[%clk 0:00:04]}  Bc5+ {[%clk 0:00:14]} 34. Kg2 {[%clk 0:00:04]}  Qd8 {[%clk 0:00:14]} 35. Qf6 {[%clk 0:00:04]}  Qxf6 {[%clk 0:00:11]} 36. Bxf6 {[%clk 0:00:05]} 1-0


[Site "https://www.chess.com"]

[Event "Titled Tuesday Blitz August 02 Early 2022"]
[White "Tanenbaum, Zachary"]
[Black "Jubin Jimmy"]
[WhiteFideId "2060850"]
[BlackFideId "46686614"]
[WhiteElo "2175"]
[BlackElo "2219"]
[Result "0-1"]
[Round "05"]
[TimeControl "180+1"]
[Date "2022.08.02"]
[WhiteClock "0:00:02"]
[BlackClock "0:00:42"]

1. e4 {[%clk 0:03:00]}  c6 {[%clk 0:02:59]} 2. d4 {[%clk 0:03:00]}  d5 {[%clk 0:03:00]} 3. exd5 {[%clk 0:03:01]}  cxd5 {[%clk 0:03:01]} 4. Bd3 {[%clk 0:03:02]}  Nc6 {[%clk 0:03:02]} 5. c3 {[%clk 0:03:03]}  Nf6 {[%clk 0:03:02]} 6. Bf4 {[%clk 0:03:03]}  Bg4 {[%clk 0:03:01]} 7. Qb3 {[%clk 0:03:03]}  e5 {[%clk 0:03:02]} 8. dxe5 {[%clk 0:03:01]}  Nh5 {[%clk 0:03:02]} 9. Qxb7 {[%clk 0:03:00]}  Nxf4 {[%clk 0:03:02]} 10. Bb5 {[%clk 0:03:00]}  Rc8 {[%clk 0:03:01]} 11. Bxc6+ {[%clk 0:03:00]}  Rxc6 {[%clk 0:03:01]} 12. Qxc6+ {[%clk 0:03:01]}  Bd7 {[%clk 0:03:01]} 13. Qa6 {[%clk 0:02:51]}  Qb8 {[%clk 0:03:01]} 14. Nd2 {[%clk 0:02:04]}  Bb5 {[%clk 0:02:45]} 15. Qa5 {[%clk 0:02:00]}  Nd3+ {[%clk 0:02:44]} 16. Kd1 {[%clk 0:01:51]}  Nxf2+ {[%clk 0:02:43]} 17. Kc2 {[%clk 0:01:48]}  Nxh1 {[%clk 0:02:42]} 18. Nh3 {[%clk 0:01:47]}  Be7 {[%clk 0:02:33]} 19. Rxh1 {[%clk 0:01:45]}  O-O {[%clk 0:02:33]} 20. Nf4 {[%clk 0:01:39]}  Bg5 {[%clk 0:02:16]} 21. g3 {[%clk 0:01:04]}  Rd8 {[%clk 0:01:53]} 22. Nf3 {[%clk 0:01:00]}  h6 {[%clk 0:01:45]} 23. Nd4 {[%clk 0:00:58]}  Qxe5 {[%clk 0:01:39]} 24. Rd1 {[%clk 0:00:33]}  Qe4+ {[%clk 0:01:34]} 25. Kc1 {[%clk 0:00:34]}  Bd7 {[%clk 0:01:06]} 26. h4 {[%clk 0:00:22]}  Bxf4+ {[%clk 0:01:04]} 27. gxf4 {[%clk 0:00:22]}  Qxf4+ {[%clk 0:01:05]} 28. Rd2 {[%clk 0:00:20]}  Re8 {[%clk 0:01:03]} 29. Qxd5 {[%clk 0:00:18]}  Bg4 {[%clk 0:00:55]} 30. Kc2 {[%clk 0:00:17]}  Re5 {[%clk 0:00:47]} 31. Qa8+ {[%clk 0:00:16]}  Kh7 {[%clk 0:00:47]} 32. a3 {[%clk 0:00:11]}  Bh5 {[%clk 0:00:47]} 33. Nb3 {[%clk 0:00:02]}  Bg6+ {[%clk 0:00:44]} 34. Kc1 {[%clk 0:00:02]}  Re1# {[%clk 0:00:42]} 0-1


[Site "https://www.chess.com"]

[Event "Titled Tuesday Blitz August 02 Early 2022"]
[White "Xiong, Jeffery"]
[Black "Izoria, Zviad"]
[WhiteFideId "2047640"]
[BlackFideId "13601733"]
[WhiteElo "2714"]
[BlackElo "2626"]
[Result "1-0"]
[Round "05"]
[TimeControl "180+1"]
[Date "2022.08.02"]
[WhiteClock "0:01:14"]
[BlackClock "0:00:06"]

1. d4 {[%clk 0:03:00]}  Nf6 {[%clk 0:02:58]} 2. c4 {[%clk 0:03:01]}  e6 {[%clk 0:02:56]} 3. Nc3 {[%clk 0:03:00]}  Bb4 {[%clk 0:02:55]} 4. Qc2 {[%clk 0:03:01]}  d6 {[%clk 0:02:39]} 5. Nf3 {[%clk 0:02:59]}  Nbd7 {[%clk 0:02:37]} 6. a3 {[%clk 0:02:59]}  Bxc3+ {[%clk 0:02:36]} 7. Qxc3 {[%clk 0:03:00]}  b6 {[%clk 0:02:30]} 8. e3 {[%clk 0:03:00]}  Bb7 {[%clk 0:02:16]} 9. Be2 {[%clk 0:03:00]}  a5 {[%clk 0:02:14]} 10. b3 {[%clk 0:02:59]}  O-O {[%clk 0:02:09]} 11. O-O {[%clk 0:02:59]}  Ne4 {[%clk 0:02:08]} 12. Qc2 {[%clk 0:02:59]}  f5 {[%clk 0:02:07]} 13. Ne1 {[%clk 0:02:59]}  c5 {[%clk 0:02:00]} 14. f3 {[%clk 0:02:55]}  Ng5 {[%clk 0:01:59]} 15. Nd3 {[%clk 0:02:53]}  Qe7 {[%clk 0:01:58]} 16. Nf2 {[%clk 0:02:51]}  e5 {[%clk 0:01:50]} 17. dxe5 {[%clk 0:02:35]}  dxe5 {[%clk 0:01:49]} 18. Bb2 {[%clk 0:02:35]}  Rf6 {[%clk 0:01:22]} 19. Rad1 {[%clk 0:02:34]}  Raf8 {[%clk 0:01:08]} 20. Qd2 {[%clk 0:02:34]}  R8f7 {[%clk 0:01:03]} 21. f4 {[%clk 0:02:29]}  Ne4 {[%clk 0:00:24]} 22. Nxe4 {[%clk 0:02:29]}  Bxe4 {[%clk 0:00:24]} 23. fxe5 {[%clk 0:02:29]}  Rg6 {[%clk 0:00:22]} 24. Bf3 {[%clk 0:02:30]}  Bxf3 {[%clk 0:00:21]} 25. Rxf3 {[%clk 0:02:30]}  Re6 {[%clk 0:00:19]} 26. e4 {[%clk 0:02:01]}  Nxe5 {[%clk 0:00:13]} 27. Qd8+ {[%clk 0:01:55]}  Qxd8 {[%clk 0:00:11]} 28. Rxd8+ {[%clk 0:01:55]}  Rf8 {[%clk 0:00:12]} 29. Rxf8+ {[%clk 0:01:37]}  Kxf8 {[%clk 0:00:13]} 30. Bxe5 {[%clk 0:01:26]}  Rxe5 {[%clk 0:00:14]} 31. Rxf5+ {[%clk 0:01:26]}  Rxf5 {[%clk 0:00:14]} 32. exf5 {[%clk 0:01:27]}  Ke7 {[%clk 0:00:14]} 33. g4 {[%clk 0:01:25]}  a4 {[%clk 0:00:13]} 34. bxa4 {[%clk 0:01:25]}  Kf6 {[%clk 0:00:13]} 35. Kf2 {[%clk 0:01:23]}  Ke5 {[%clk 0:00:07]} 36. Ke3 {[%clk 0:01:13]}  h5 {[%clk 0:00:06]} 37. h3 {[%clk 0:01:14]} 1-0


[Site "https://www.chess.com"]

[Event "Titled Tuesday Blitz August 02 Early 2022"]
[White "Ajay, Karthikeyan"]
[Black "Maksimovic, Bojan"]
[WhiteFideId "35011685"]
[BlackFideId "14408120"]
[WhiteElo "2183"]
[BlackElo "2453"]
[Result "1/2-1/2"]
[Round "06"]
[TimeControl "180+1"]
[Date "2022.08.02"]
[WhiteClock "0:00:07"]
[BlackClock "0:00:03"]

1. e4 {[%clk 0:03:00]}  e5 {[%clk 0:02:59]} 2. Nf3 {[%clk 0:02:57]}  Nc6 {[%clk 0:03:00]} 3. Bc4 {[%clk 0:02:58]}  Nf6 {[%clk 0:02:59]} 4. Ng5 {[%clk 0:02:58]}  Bc5 {[%clk 0:02:59]} 5. Bxf7+ {[%clk 0:02:43]}  Ke7 {[%clk 0:02:57]} 6. Bb3 {[%clk 0:02:41]}  Rf8 {[%clk 0:02:53]} 7. O-O {[%clk 0:02:34]}  d6 {[%clk 0:02:50]} 8. d3 {[%clk 0:02:18]}  Bg4 {[%clk 0:02:40]} 9. Nf3 {[%clk 0:02:07]}  Nd4 {[%clk 0:02:24]} 10. Nbd2 {[%clk 0:02:06]}  Nh5 {[%clk 0:01:40]} 11. c3 {[%clk 0:01:47]}  Nxf3+ {[%clk 0:01:17]} 12. Nxf3 {[%clk 0:01:37]}  Bxf3 {[%clk 0:01:17]} 13. gxf3 {[%clk 0:01:15]}  Nf4 {[%clk 0:01:02]} 14. d4 {[%clk 0:01:15]}  Bb6 {[%clk 0:01:02]} 15. Be3 {[%clk 0:01:14]}  Qe8 {[%clk 0:00:55]} 16. Kh1 {[%clk 0:01:12]}  Rf6 {[%clk 0:00:20]} 17. Rg1 {[%clk 0:01:07]}  Kf8 {[%clk 0:00:20]} 18. Rg4 {[%clk 0:01:05]}  Ne6 {[%clk 0:00:10]} 19. Qg1 {[%clk 0:01:02]}  g6 {[%clk 0:00:11]} 20. Qg3 {[%clk 0:00:59]}  exd4 {[%clk 0:00:04]} 21. cxd4 {[%clk 0:00:59]}  Nxd4 {[%clk 0:00:04]} 22. Bh6+ {[%clk 0:00:58]}  Ke7 {[%clk 0:00:05]} 23. Bg5 {[%clk 0:00:57]}  Nxb3 {[%clk 0:00:03]} 24. axb3 {[%clk 0:00:55]}  Qf7 {[%clk 0:00:03]} 25. Rf4 {[%clk 0:00:54]}  Bd4 {[%clk 0:00:02]} 26. Rd1 {[%clk 0:00:39]}  Be5 {[%clk 0:00:03]} 27. Bxf6+ {[%clk 0:00:39]}  Bxf6 {[%clk 0:00:03]} 28. e5 {[%clk 0:00:37]}  dxe5 {[%clk 0:00:02]} 29. Rc4 {[%clk 0:00:34]}  Kf8 {[%clk 0:00:03]} 30. f4 {[%clk 0:00:33]}  Re8 {[%clk 0:00:03]} 31. Qf3 {[%clk 0:00:24]}  c6 {[%clk 0:00:02]} 32. Re4 {[%clk 0:00:14]}  Bg5 {[%clk 0:00:03]} 33. f5 {[%clk 0:00:09]}  Qxf5 {[%clk 0:00:02]} 34. Qxf5+ {[%clk 0:00:09]}  gxf5 {[%clk 0:00:03]} 35. Rb4 {[%clk 0:00:08]}  Re7 {[%clk 0:00:04]} 36. Rc4 {[%clk 0:00:08]}  Kf7 {[%clk 0:00:04]} 37. f3 {[%clk 0:00:08]}  Kf6 {[%clk 0:00:04]} 38. Kg2 {[%clk 0:00:09]}  e4 {[%clk 0:00:04]} 39. fxe4 {[%clk 0:00:09]}  fxe4 {[%clk 0:00:05]} 40. Re1 {[%clk 0:00:09]}  e3 {[%clk 0:00:05]} 41. Kf3 {[%clk 0:00:09]}  Kf5 {[%clk 0:00:05]} 42. Rc5+ {[%clk 0:00:09]}  Re5 {[%clk 0:00:06]} 43. Rc4 {[%clk 0:00:08]}  h5 {[%clk 0:00:05]} 44. Re2 {[%clk 0:00:08]}  h4 {[%clk 0:00:05]} 45. Rg2 {[%clk 0:00:08]}  Kf6 {[%clk 0:00:04]} 46. Re2 {[%clk 0:00:08]}  Rf5+ {[%clk 0:00:04]} 47. Ke4 {[%clk 0:00:08]}  Rb5 {[%clk 0:00:05]} 48. b4 {[%clk 0:00:09]}  Re5+ {[%clk 0:00:05]} 49. Kd3 {[%clk 0:00:09]}  Rd5+ {[%clk 0:00:05]} 50. Ke4 {[%clk 0:00:10]}  Re5+ {[%clk 0:00:05]} 51. Kf3 {[%clk 0:00:10]}  Kf5 {[%clk 0:00:06]} 52. Rg2 {[%clk 0:00:06]}  Rd5 {[%clk 0:00:03]} 53. Re2 {[%clk 0:00:05]}  a6 {[%clk 0:00:03]} 54. Rg2 {[%clk 0:00:05]}  Kf6 {[%clk 0:00:03]} 55. Re2 {[%clk 0:00:05]}  Rf5+ {[%clk 0:00:03]} 56. Ke4 {[%clk 0:00:05]}  Rb5 {[%clk 0:00:04]} 57. Kd3 {[%clk 0:00:05]}  Kf5 {[%clk 0:00:04]} 58. h3 {[%clk 0:00:03]}  Rd5+ {[%clk 0:00:04]} 59. Rd4 {[%clk 0:00:04]}  Ke5 {[%clk 0:00:02]} 60. Rxd5+ {[%clk 0:00:04]}  cxd5 {[%clk 0:00:03]} 61. Rg2 {[%clk 0:00:04]}  Kf4 {[%clk 0:00:01]} 62. Rg4+ {[%clk 0:00:05]}  Kf5 {[%clk 0:00:02]} 63. Rd4 {[%clk 0:00:05]}  Ke5 {[%clk 0:00:02]} 64. Rg4 {[%clk 0:00:06]}  Kf5 {[%clk 0:00:02]} 65. Rd4 {[%clk 0:00:06]}  Ke5 {[%clk 0:00:03]} 66. Rg4 {[%clk 0:00:07]}  Kf5 {[%clk 0:00:03]} 1/2-1/2


[Site "https://www.chess.com"]

[Event "Titled Tuesday Blitz August 02 Early 2022"]
[White "Cappelletto, Joshuaede"]
[Black "Saydaliev, Saidakbar"]
[WhiteFideId "2824383"]
[BlackFideId "14203693"]
[WhiteElo "1761"]
[BlackElo "2265"]
[Result "1-0"]
[Round "06"]
[TimeControl "180+1"]
[Date "2022.08.02"]
[WhiteClock "0:00:06"]
[BlackClock "0:00:01"]

1. e4 {[%clk 0:03:00]}  e5 {[%clk 0:02:59]} 2. Nf3 {[%clk 0:02:58]}  Nc6 {[%clk 0:02:59]} 3. Bc4 {[%clk 0:02:59]}  Nf6 {[%clk 0:02:58]} 4. d3 {[%clk 0:02:58]}  Bc5 {[%clk 0:02:57]} 5. O-O {[%clk 0:02:57]}  a6 {[%clk 0:02:57]} 6. a4 {[%clk 0:02:57]}  d6 {[%clk 0:02:55]} 7. c3 {[%clk 0:02:54]}  Ba7 {[%clk 0:02:55]} 8. Na3 {[%clk 0:02:54]}  h6 {[%clk 0:02:55]} 9. Nc2 {[%clk 0:02:54]}  O-O {[%clk 0:02:54]} 10. Be3 {[%clk 0:02:54]}  d5 {[%clk 0:02:48]} 11. exd5 {[%clk 0:02:52]}  Nxd5 {[%clk 0:02:48]} 12. Bxa7 {[%clk 0:02:53]}  Rxa7 {[%clk 0:02:49]} 13. Re1 {[%clk 0:02:53]}  Re8 {[%clk 0:02:41]} 14. Ne3 {[%clk 0:02:50]}  Be6 {[%clk 0:02:40]} 15. Nxd5 {[%clk 0:02:31]}  Bxd5 {[%clk 0:02:40]} 16. Bxd5 {[%clk 0:02:23]}  Qxd5 {[%clk 0:02:40]} 17. Qc2 {[%clk 0:02:07]}  Raa8 {[%clk 0:02:35]} 18. Re4 {[%clk 0:02:06]}  Rad8 {[%clk 0:02:35]} 19. Rd1 {[%clk 0:01:57]}  f5 {[%clk 0:02:32]} 20. Ree1 {[%clk 0:01:57]}  b5 {[%clk 0:02:24]} 21. axb5 {[%clk 0:01:56]}  axb5 {[%clk 0:02:25]} 22. h3 {[%clk 0:01:56]}  Kh7 {[%clk 0:02:22]} 23. Rd2 {[%clk 0:01:43]}  Na5 {[%clk 0:01:36]} 24. Rde2 {[%clk 0:01:34]}  Qxd3 {[%clk 0:01:28]} 25. Qxd3 {[%clk 0:01:32]}  Rxd3 {[%clk 0:01:29]} 26. Rxe5 {[%clk 0:01:32]}  Rxe5 {[%clk 0:01:22]} 27. Rxe5 {[%clk 0:01:33]}  c6 {[%clk 0:01:18]} 28. Rxf5 {[%clk 0:01:29]}  Nc4 {[%clk 0:01:18]} 29. Rc5 {[%clk 0:01:26]}  Nxb2 {[%clk 0:01:13]} 30. Rxc6 {[%clk 0:01:26]}  Na4 {[%clk 0:01:06]} 31. Rc8 {[%clk 0:00:36]}  Nxc3 {[%clk 0:00:59]} 32. Rb8 {[%clk 0:00:36]}  Rd1+ {[%clk 0:00:26]} 33. Kh2 {[%clk 0:00:35]}  Rb1 {[%clk 0:00:27]} 34. Rb7 {[%clk 0:00:25]}  b4 {[%clk 0:00:20]} 35. Nd4 {[%clk 0:00:26]}  Kg6 {[%clk 0:00:18]} 36. Rb6+ {[%clk 0:00:22]}  Kf7 {[%clk 0:00:18]} 37. g4 {[%clk 0:00:15]}  Nd5 {[%clk 0:00:14]} 38. Rb7+ {[%clk 0:00:13]}  Kf6 {[%clk 0:00:15]} 39. Nf5 {[%clk 0:00:13]}  b3 {[%clk 0:00:12]} 40. Ne3 {[%clk 0:00:13]}  Nxe3 {[%clk 0:00:11]} 41. fxe3 {[%clk 0:00:13]}  g5 {[%clk 0:00:10]} 42. Rb5 {[%clk 0:00:14]}  Ke6 {[%clk 0:00:09]} 43. Kg2 {[%clk 0:00:13]}  Kd6 {[%clk 0:00:09]} 44. Rb8 {[%clk 0:00:10]}  Kd5 {[%clk 0:00:08]} 45. Kf3 {[%clk 0:00:06]}  Kc4 {[%clk 0:00:03]} 46. Ke4 {[%clk 0:00:06]}  Rh1 {[%clk 0:00:01]} 47. Kf5 {[%clk 0:00:05]}  Rxh3 {[%clk 0:00:01]} 48. e4 {[%clk 0:00:06]} 1-0


[Site "https://www.chess.com"]